bitfinex/quotes_BTCUSD_20250718
["timestamp","ask_amount","ask_price","bid_price","bid_amount"]
[1752828242883,0.20364,118540.0,118530.0,0.44067765]
[1752828243111,0.35152,118540.0,118530.0,0.89582136]
[1752828243357,0.20364,118540.0,118530.0,0.98133164]
[1752828243584,0.35172,118540.0,118530.0,1.06709126]
[1752828244270,0.14908,118540.0,118530.0,1.06709126]
[1752828244549,0.14928,118540.0,118530.0,1.06709126]
[1752828245479,0.14928,118540.0,118530.0,0.44067765]
[1752828245949,0.17458683,118540.0,118530.0,0.43224147]
[1752828246190,0.16615101,118540.0,118530.0,0.40887765]
[1752828246424,0.18302273,118540.0,118530.0,0.37471779]
[1752828246659,0.17458676,118540.0,118530.0,0.38315397]
[1752828246919,0.16615101,118540.0,118530.0,0.38315397]
[1752828247133,0.18302258,118540.0,118530.0,0.38315397]
[1752828247344,0.16615101,118540.0,118530.0,0.38631397]
[1752828247553,0.17458676,118540.0,118530.0,0.38631397]
[1752828247753,0.16615101,118540.0,118530.0,0.38631397]
[1752828247967,0.17458676,118540.0,118530.0,0.38631397]
[1752828248412,0.16615101,118540.0,118530.0,0.38631397]
[1752828248624,0.17458676,118540.0,118530.0,0.38631397]
[1752828248841,0.16615101,118540.0,118530.0,0.38631397]
[1752828249255,0.17458683,118540.0,118530.0,0.38631397]
[1752828249486,0.1577154,118540.0,118530.0,0.38631397]
[1752828249694,0.16615101,118540.0,118530.0,0.38631397]
[1752828250106,0.18302265,118540.0,118530.0,0.38631397]
[1752828250316,0.18302258,118540.0,118530.0,0.38631397]
[1752828250997,0.17458676,118540.0,118530.0,0.38631397]
[1752828251210,0.18302258,118540.0,118530.0,0.38631397]
[1752828251824,0.19145847,118540.0,118530.0,0.38631397]
[1752828252060,0.18302258,118540.0,118530.0,0.38631397]
[1752828252453,0.19145847,118540.0,118530.0,0.38631397]
[1752828253109,0.17458676,118540.0,118530.0,0.38631397]
[1752828253531,0.18302258,118540.0,118530.0,0.41931397]
[1752828253735,0.19145847,118540.0,118530.0,0.41931397]
[1752828253937,0.16615101,118540.0,118530.0,0.41931397]
[1752828254142,0.14928,118540.0,118530.0,0.48208971]
[1752828254359,0.1577154,118540.0,118530.0,0.48208971]
[1752828254600,0.16615101,118540.0,118530.0,0.41931397]
[1752828254826,0.17458662,118540.0,118530.0,0.41931397]
[1752828255260,0.16615094,118540.0,118530.0,0.41931397]
[1752828255677,0.17458662,118540.0,118530.0,0.41931397]
[1752828255902,0.18302244,118540.0,118530.0,0.41931397]
[1752828256136,0.17458662,118540.0,118530.0,0.41931397]
[1752828256343,0.18302244,118540.0,118530.0,0.41931397]
[1752828256553,0.28302244,118540.0,118530.0,0.41931397]
[1752828257028,0.27458662,118540.0,118530.0,0.41931397]
[1752828257253,0.28302244,118540.0,118530.0,0.38315397]
[1752828258177,0.28302244,118540.0,118530.0,0.38631397]
[1752828259572,0.29145833,118540.0,118500.0,0.77952179]
[1752828259837,0.34,118530.0,118520.0,0.18562174]
[1752828260079,0.34,118530.0,118520.0,0.17718514]
[1752828260722,0.34,118530.0,118520.0,0.17718521]
[1752828260946,0.48696,118530.0,118520.0,0.18562239]
[1752828261166,0.48746096,118530.0,118520.0,0.19405956]
[1752828261392,0.48746096,118530.0,118520.0,0.18562246]
[1752828261627,0.48746096,118530.0,118520.0,0.19405964]
[1752828261841,0.14746096,118530.0,118520.0,0.17718521]
[1752828262098,0.14746096,118530.0,118520.0,0.18562246]
[1752828262559,0.14746096,118530.0,118520.0,0.19405964]
[1752828262787,0.14746096,118530.0,118520.0,0.21662246]
[1752828263438,0.15589707,118530.0,118520.0,0.20818528]
[1752828263655,0.16433332,118530.0,118510.0,0.33747284]
[1752828263875,0.16433325,118530.0,118520.0,0.00843739]
[1752828264101,0.1727695,118530.0,118510.0,0.38843477]
[1752828264306,0.15689707,118530.0,118520.0,0.001]
[1752828264515,0.15689707,118530.0,118520.0,0.00943739]
[1752828264744,0.17376985,118530.0,118520.0,0.001]
[1752828264960,0.16533339,118530.0,118520.0,0.17918521]
[1752828265174,0.67406704,118530.0,118520.0,0.002]
[1752828265386,0.67914775,118530.0,118520.0,0.002]
[1752828265591,0.71134775,118530.0,118520.0,0.001]
[1752828266249,1.16649146,118530.0,118520.0,0.001]
[1752828266668,0.34050096,118530.0,118520.0,0.19716854]
[1752828266892,0.48694096,118530.0,118520.0,0.2889397]
[1752828267106,0.14794096,118530.0,118520.0,0.2899397]
[1752828267383,0.00150096,118530.0,118520.0,0.37544998]
[1752828267659,0.14814096,118530.0,118520.0,0.37544998]
[1752828268098,0.00150096,118530.0,118520.0,0.37544998]
[1752828268317,0.14814096,118530.0,118520.0,0.37544998]
[1752828268532,0.00150096,118530.0,118520.0,0.37544998]
[1752828268755,0.14810096,118530.0,118520.0,0.37544998]
[1752828268991,0.14810096,118530.0,118520.0,0.30701764]
[1752828269206,0.14810096,118530.0,118520.0,0.33232895]
[1752828270391,0.00150096,118530.0,118520.0,0.33232895]
[1752828270615,0.14798096,118530.0,118520.0,0.79253455]
[1752828270838,1e-08,118540.0,118530.0,0.19404283]
[1752828271055,1e-08,118540.0,118530.0,1.03419822]
[1752828271966,1e-08,118540.0,118530.0,0.97888694]
[1752828272619,0.00100001,118540.0,118530.0,0.98188694]
[1752828272840,0.00100001,118540.0,118530.0,0.97888694]
[1752828272841,1e-08,118540.0,118530.0,0.97888694]
[1752828273258,0.00100001,118540.0,118530.0,0.98488694]
[1752828273938,0.00100001,118540.0,118530.0,0.52974323]
[1752828274150,0.00100001,118540.0,118530.0,0.83840694]
[1752828274366,0.00100001,118540.0,118530.0,0.98512694]
[1752828274584,0.00200001,118540.0,118530.0,0.98912694]
[1752828275725,1e-08,118540.0,118530.0,0.98912694]
[1752828276657,1e-08,118540.0,118530.0,0.84240694]
[1752828276916,1e-08,118540.0,118530.0,0.98908694]
[1752828277343,1e-08,118540.0,118530.0,0.84240694]
[1752828277569,1e-08,118540.0,118530.0,0.98912694]
[1752828280858,1e-08,118550.0,118540.0,0.20582645]
[1752828281076,1e-08,118550.0,118540.0,0.83224006]
[1752828281284,0.34916,118570.0,118560.0,0.19399372]
[1752828281516,0.38006,118570.0,118560.0,0.279504]
[1752828281753,0.38304,118570.0,118560.0,0.279504]
[1752828281938,0.41794,118570.0,118560.0,0.279504]
[1752828282393,0.41584,118570.0,118560.0,0.279504]
[1752828282612,0.38006,118570.0,118560.0,0.32601061]
[1752828282885,0.34916,118570.0,118560.0,0.32601061]
[1752828283959,0.35016,118570.0,118560.0,0.32801061]
[1752828284386,0.35016,118570.0,118560.0,0.33001061]
[1752828285055,0.38584,118570.0,118560.0,0.33001061]
[1752828285291,0.41894,118570.0,118560.0,0.283504]
[1752828285744,0.43580659,118570.0,118560.0,0.2750701]
[1752828285972,0.62135106,118570.0,118560.0,0.004]
[1752828286652,0.45267433,118570.0,118560.0,0.01243454]
[1752828286872,0.6129173,118570.0,118560.0,0.004]
[1752828288415,0.58701673,118570.0,118560.0,0.004]
[1752828288632,1.59267072,118570.0,118560.0,0.004]
[1752828288852,0.85605673,118570.0,118560.0,0.004]
[1752828289131,1.02727773,118570.0,118560.0,0.004]
[1752828289338,1.01884425,118570.0,118560.0,0.004]
[1752828289597,1.47398796,118570.0,118560.0,0.004]
[1752828289825,1.47398796,118570.0,118560.0,0.002]
[1752828290051,1.01784425,118570.0,118560.0,0.002]
[1752828290282,1.00037673,118570.0,118560.0,0.002]
[1752828290574,1.00045673,118570.0,118560.0,0.002]
[1752828290777,0.86289042,118570.0,118560.0,0.003]
[1752828291034,0.86289042,118570.0,118560.0,0.00510863]
[1752828291257,0.77356688,118570.0,118560.0,0.18223398]
[1752828291486,0.95911063,118570.0,118560.0,0.003]
[1752828291712,1.01724404,118570.0,118560.0,0.003]
[1752828291940,1.01724404,118570.0,118560.0,0.00510863]
[1752828292428,0.94224404,118570.0,118560.0,0.00510863]
[1752828292660,1.01724404,118570.0,118560.0,0.00510863]
[1752828293103,0.87132404,118570.0,118560.0,0.00510863]
[1752828293569,1.01724404,118570.0,118560.0,0.00510863]
[1752828294239,0.94224404,118570.0,118560.0,0.00510863]
[1752828294463,0.99934688,118570.0,118560.0,0.18223405]
[1752828294691,1.15374064,118570.0,118560.0,0.003]
[1752828294935,1.15374064,118570.0,118560.0,0.00510863]
[1752828295178,1.23898404,118570.0,118560.0,0.00510863]
[1752828295399,1.31398404,118570.0,118560.0,0.00510863]
[1752828295651,1.23055049,118570.0,118560.0,0.00510863]
[1752828295878,1.30555049,118570.0,118560.0,0.00510863]
[1752828296545,1.14530731,118570.0,118560.0,0.0135431]
[1752828296780,1.31398404,118570.0,118560.0,0.00510863]
[1752828297268,0.5003,118570.0,118560.0,0.19910235]
[1752828297475,0.42764319,118570.0,118560.0,0.19699372]
[1752828297693,0.42764319,118570.0,118560.0,0.23546125]
[1752828297910,0.42764319,118570.0,118560.0,0.19699372]
[1752828298163,0.43607652,118570.0,118560.0,0.19699372]
[1752828298382,0.44451,118570.0,118560.0,0.19699387]
[1752828298601,0.44451,118570.0,118560.0,0.18012542]
[1752828298602,0.45294362,118570.0,118560.0,0.18012542]
[1752828298818,0.45294362,118570.0,118560.0,0.003]
[1752828298819,1.05989775,118570.0,118560.0,0.003]
[1752828299247,0.60475404,118570.0,118560.0,0.003]
[1752828299676,0.6131878,118570.0,118560.0,0.01143454]
[1752828299888,0.43599659,118570.0,118560.0,0.19910285]
[1752828300098,0.44443014,118570.0,118560.0,0.19699422]
[1752828300305,0.45286376,118570.0,118560.0,0.01122354]
[1752828300580,0.60467411,118570.0,118560.0,0.002789]
[1752828300911,0.59624049,118570.0,118560.0,0.002789]
[1752828301380,0.93624049,118570.0,118560.0,0.002789]
[1752828301612,1.4663842,118570.0,118560.0,0.002789]
[1752828302081,1.3913842,118570.0,118560.0,0.002789]
[1752828302303,1.4663842,118570.0,118560.0,0.002789]
[1752828303674,1.55189448,118570.0,118560.0,0.002789]
[1752828303893,1.60189448,118570.0,118560.0,0.002789]
[1752828304366,1.60189448,118570.0,118560.0,0.001789]
[1752828304605,0.25039084,118540.0,118530.0,0.0001505]
[1752828304839,0.39838084,118540.0,118530.0,0.0001505]
[1752828305055,0.40156084,118540.0,118530.0,0.00858718]
[1752828305286,0.40156084,118540.0,118530.0,0.18786661]
[1752828305517,0.40156084,118540.0,118530.0,0.18575744]
[1752828305736,0.24127676,118540.0,118530.0,0.18575744]
[1752828306023,0.24975244,118540.0,118530.0,0.18575744]
[1752828306255,0.23288094,118540.0,118530.0,0.22677416]
[1752828306495,0.24975244,118540.0,118530.0,0.18575744]
[1752828306714,0.41847228,118540.0,118530.0,0.17732083]
[1752828306956,0.41425107,118540.0,118530.0,0.0011505]
[1752828307196,0.41425107,118540.0,118530.0,0.01169628]
[1752828307408,0.41425107,118540.0,118530.0,0.00525967]
[1752828307409,0.41525107,118540.0,118530.0,0.00525967]
[1752828307636,0.40681539,118540.0,118530.0,0.0031505]
[1752828307860,0.78525589,118540.0,118530.0,0.0031505]
[1752828308087,1.2021191,118540.0,118530.0,0.00525967]
[1752828308361,1.2021191,118540.0,118530.0,0.0031505]
[1752828308581,1.2521191,118540.0,118530.0,0.0031505]
[1752828308996,0.79697539,118540.0,118530.0,0.0031505]
[1752828309225,0.87197539,118540.0,118530.0,0.0031505]
[1752828310092,1.3271191,118540.0,118530.0,0.0031505]
[1752828310299,0.79697539,118540.0,118530.0,0.0031505]
[1752828310513,0.87197539,118540.0,118530.0,0.00525967]
[1752828311364,0.79697539,118540.0,118530.0,0.00525967]
[1752828311575,0.72589539,118540.0,118530.0,0.00525967]
[1752828311782,0.65317513,118540.0,118530.0,0.199303]
[1752828311985,0.67848253,118540.0,118530.0,0.18875744]
[1752828312164,0.67848245,118540.0,118530.0,0.19719398]
[1752828312395,0.83033128,118540.0,118530.0,0.0031505]
[1752828312596,0.83033128,118540.0,118530.0,0.00525967]
[1752828312802,0.82189553,118540.0,118530.0,0.00525967]
[1752828312932,0.82189553,118540.0,118530.0,0.0031505]
[1752828313137,0.81345964,118540.0,118530.0,0.0031505]
[1752828313391,0.81345964,118540.0,118530.0,0.01158718]
[1752828313598,0.81345964,118540.0,118530.0,0.02002379]
[1752828313801,0.5781759,118540.0,118530.0,0.18243]
[1752828314001,0.58661081,118540.0,118530.0,0.19719354]
[1752828314230,0.57817506,118540.0,118530.0,0.19719354]
[1752828314601,0.66161074,118540.0,118530.0,0.19719354]
[1752828314809,0.58661067,118540.0,118530.0,0.20562972]
[1752828315019,0.67004642,118540.0,118530.0,0.19719354]
[1752828315265,0.65317506,118540.0,118530.0,0.19719354]
[1752828315467,0.001,118540.0,118530.0,0.32857778]
[1752828315924,0.14684,118540.0,118530.0,0.32857778]
[1752828316087,0.14684,118540.0,118530.0,0.29114]
[1752828316291,0.14684,118540.0,118530.0,0.74628371]
[1752828316500,0.14684,118540.0,118530.0,0.29114]
[1752828318389,0.48684,118540.0,118530.0,0.29114]
[1752828319370,0.14684,118540.0,118530.0,0.29114]
[1752828319587,0.14684,118540.0,118530.0,0.30294]
[1752828320254,0.14684,118540.0,118530.0,0.75808371]
[1752828320440,0.14684,118540.0,118530.0,0.30294]
[1752828321299,0.14684,118540.0,118530.0,0.75808371]
[1752828321505,1e-08,118540.0,118530.0,0.98960333]
[1752828321725,0.07510295,118560.0,118550.0,0.20581009]
[1752828321942,0.00317,118590.0,118580.0,0.19396101]
[1752828322148,0.032,118590.0,118580.0,0.19396101]
[1752828322373,0.17792,118590.0,118580.0,0.19396101]
[1752828322567,0.17792,118590.0,118580.0,0.23191021]
[1752828323002,0.18109,118590.0,118580.0,0.23191021]
[1752828323206,0.18109,118590.0,118580.0,0.23206071]
[1752828323438,0.18209,118590.0,118580.0,0.23306071]
[1752828324096,0.18405,118590.0,118580.0,0.23306071]
[1752828324288,0.21595,118590.0,118580.0,0.23306071]
[1752828324507,0.21495,118590.0,118580.0,0.23206071]
[1752828325128,0.21399,118590.0,118580.0,0.31857099]
[1752828325339,0.14692,118590.0,118580.0,0.31857099]
[1752828325994,0.14692,118590.0,118580.0,0.26857099]
[1752828326208,0.14692,118590.0,118580.0,0.2938695]
[1752828326415,0.14692,118590.0,118580.0,0.76081321]
[1752828327040,0.001,118590.0,118580.0,0.76081321]
[1752828327287,0.0319,118620.0,118610.0,0.19391195]
[1752828327495,0.51798,118620.0,118610.0,0.30049966]
[1752828328194,0.52115,118620.0,118610.0,0.30049966]
[1752828328386,0.52311,118620.0,118610.0,0.30049966]
[1752828328847,0.52115,118620.0,118610.0,0.30049966]
[1752828329499,1.01005371,118620.0,118610.0,0.16861984]
[1752828329707,1.01848335,118620.0,118610.0,0.18548161]
[1752828329915,0.57086949,118620.0,118610.0,0.1854816]
[1752828330125,0.56243971,118620.0,118610.0,0.20234279]
[1752828330346,0.55401,118620.0,118610.0,0.24028232]
[1752828330982,0.55401,118620.0,118610.0,0.20234279]
[1752828331236,0.55401,118620.0,118610.0,0.17234279]
[1752828331723,0.48616,118620.0,118610.0,0.25785307]
[1752828332192,0.341,118620.0,118610.0,0.25885307]
[1752828332409,0.48716,118620.0,118610.0,0.25885307]
[1752828332630,0.52239,118620.0,118610.0,0.25885307]
[1752828332840,0.48716,118620.0,118610.0,0.25885307]
[1752828333055,0.14716,118620.0,118610.0,0.30244363]
[1752828333506,0.1472,118620.0,118610.0,0.30244363]
[1752828333747,0.001,118620.0,118610.0,0.30244363]
[1752828333960,0.14732,118620.0,118610.0,0.30244363]
[1752828334398,0.14728,118620.0,118610.0,0.30244363]
[1752828334624,0.001,118620.0,118610.0,0.78110806]
[1752828334853,0.001,118620.0,118610.0,0.79290806]
[1752828335116,0.001,118620.0,118610.0,1.13290806]
[1752828335560,0.001,118620.0,118610.0,0.67776435]
[1752828335774,0.001,118620.0,118610.0,1.13290806]
[1752828335985,0.001,118620.0,118610.0,0.91172397]
[1752828336204,0.001,118620.0,118610.0,1.22066768]
[1752828336633,0.001,118620.0,118610.0,1.36686768]
[1752828337071,0.001,118620.0,118610.0,1.22066768]
[1752828337495,0.001,118620.0,118610.0,1.36682768]
[1752828337936,0.001,118620.0,118610.0,1.39013268]
[1752828338157,0.001,118620.0,118610.0,0.89217268]
[1752828338371,0.14724,118620.0,118610.0,0.89617268]
[1752828338586,0.14624,118620.0,118610.0,0.44002897]
[1752828338830,0.14624,118620.0,118610.0,0.28315807]
[1752828339067,0.06507,118630.0,118620.0,0.19389561]
[1752828339280,0.06507,118630.0,118620.0,0.27940589]
[1752828339281,0.21327,118630.0,118620.0,0.27940589]
[1752828339922,0.221699,118630.0,118620.0,0.27940589]
[1752828340210,0.22169893,118630.0,118620.0,0.27940589]
[1752828340626,0.21327,118630.0,118620.0,0.27940589]
[1752828341273,0.21327,118630.0,118620.0,0.32506569]
[1752828341512,0.21327,118630.0,118620.0,0.28340589]
[1752828341713,0.23012807,118630.0,118620.0,0.28340589]
[1752828341922,0.21427,118630.0,118620.0,0.28940589]
[1752828342141,0.21415,118630.0,118620.0,0.28940589]
[1752828342352,0.21415,118630.0,118620.0,0.33642505]
[1752828342781,0.06803,118630.0,118620.0,0.33642505]
[1752828343020,0.21415,118630.0,118620.0,0.33642505]
[1752828344358,0.22257907,118630.0,118620.0,0.28940589]
[1752828344582,0.23100863,118630.0,118620.0,0.18703591]
[1752828344802,0.23100821,118630.0,118620.0,0.21232589]
[1752828345030,0.21415,118630.0,118620.0,0.21232589]
[1752828345468,0.22257893,118630.0,118620.0,0.24826351]
[1752828345678,0.22157893,118630.0,118620.0,0.20632589]
[1752828345890,0.23843714,118630.0,118620.0,0.20632589]
[1752828346102,0.23100793,118630.0,118620.0,0.21032589]
[1752828346317,0.24786621,118630.0,118620.0,0.21032589]
[1752828346745,0.25629556,118630.0,118620.0,0.21032589]
[1752828346962,0.25629612,118630.0,118620.0,0.21032589]
[1752828347178,0.25629605,118630.0,118620.0,0.21032589]
[1752828347395,0.25629654,118630.0,118620.0,0.21875574]
[1752828347629,0.23943763,118630.0,118620.0,0.21875574]
[1752828347882,0.23100828,118630.0,118620.0,0.21875574]
[1752828348087,0.2394377,118630.0,118620.0,0.21875574]
[1752828348524,0.25348004,118630.0,118620.0,0.004]
[1752828348734,1.19454375,118630.0,118620.0,0.004]
[1752828348948,1.26954375,118630.0,118620.0,0.004]
[1752828349161,1.31954375,118630.0,118620.0,0.004]
[1752828349614,1.40505403,118630.0,118620.0,0.004]
[1752828350294,0.0608,118590.0,118580.0,0.26588723]
[1752828350529,0.0608,118590.0,118580.0,0.32236474]
[1752828350530,0.21715177,118590.0,118580.0,0.32236474]
[1752828350751,0.20872,118590.0,118580.0,0.32236474]
[1752828350996,0.21173,118590.0,118580.0,0.32236474]
[1752828351211,0.33001,118600.0,118590.0,0.19394465]
[1752828351422,0.47597,118600.0,118590.0,0.27945493]
[1752828351636,0.47803,118600.0,118590.0,0.33024255]
[1752828351864,0.51846113,118600.0,118590.0,0.33024255]
[1752828352083,0.07343177,118590.0,118580.0,0.23042156]
[1752828352285,0.07343184,118590.0,118580.0,0.31593184]
[1752828352473,0.07850177,118590.0,118580.0,0.31593184]
[1752828352737,0.07007,118590.0,118580.0,0.36439145]
[1752828353404,0.07850177,118590.0,118580.0,0.31593184]
[1752828353837,0.07950177,118590.0,118580.0,0.32093184]
[1752828354511,0.10479793,118590.0,118580.0,0.32093184]
[1752828354724,0.09636566,118590.0,118580.0,0.32936489]
[1752828354938,0.11323012,118590.0,118580.0,0.24385461]
[1752828355151,0.26501479,118590.0,118580.0,0.16831071]
[1752828355373,0.25658274,118590.0,118580.0,0.00748381]
[1752828355810,1.05172645,118590.0,118580.0,0.00748381]
[1752828356059,1.17672645,118590.0,118580.0,0.00748381]
[1752828356290,1.17672645,118590.0,118580.0,0.00548381]
[1752828356531,1.18412848,118590.0,118580.0,0.00548381]
[1752828356766,1.18312848,118590.0,118580.0,0.00048381]
[1752828357219,0.72998477,118590.0,118580.0,0.00148381]
[1752828357445,0.72998477,118590.0,118580.0,0.00048381]
[1752828357446,1.18312848,118590.0,118580.0,0.00048381]
[1752828357688,1.18412848,118590.0,118580.0,0.00048381]
[1752828357891,1.18712848,118590.0,118580.0,0.00148381]
[1752828358977,0.73198477,118590.0,118580.0,0.00148381]
[1752828359195,1.18712848,118590.0,118580.0,0.17014631]
[1752828359423,1.13712848,118590.0,118580.0,0.00148381]
[1752828359639,0.83637661,118590.0,118580.0,0.26466474]
[1752828359854,0.67616067,118590.0,118580.0,0.27942177]
[1752828360074,0.60116067,118590.0,118580.0,0.27098915]
[1752828360290,0.84480895,118590.0,118580.0,0.25412362]
[1752828360507,0.65189461,118590.0,118580.0,0.26255645]
[1752828360738,0.57689432,118590.0,118580.0,0.27098914]
[1752828360952,0.07201,118590.0,118580.0,0.27942176]
[1752828361176,0.004,118590.0,118580.0,0.82007575]
[1752828361397,0.004,118590.0,118580.0,0.90583537]
[1752828361659,0.14996,118590.0,118580.0,0.91763537]
[1752828362103,0.004,118590.0,118580.0,0.46249166]
[1752828362331,0.15008,118590.0,118580.0,0.45069166]
[1752828362558,0.15008,118590.0,118580.0,0.36493204]
[1752828363016,0.14908,118590.0,118580.0,0.36493204]
[1752828363501,0.14908,118590.0,118580.0,0.36693204]
[1752828363737,0.14608,118590.0,118580.0,0.36593204]
[1752828363950,0.14708,118590.0,118580.0,0.36693204]
[1752828364185,0.14708,118590.0,118580.0,0.41786922]
[1752828364408,0.14708,118590.0,118580.0,0.41986922]
[1752828365069,0.14708,118590.0,118580.0,0.87501293]
[1752828365281,0.14708,118590.0,118580.0,0.88681293]
[1752828365534,0.001,118590.0,118580.0,0.88681293]
[1752828365742,0.14688,118590.0,118580.0,0.89081293]
[1752828366395,0.14165,118590.0,118580.0,0.89081293]
[1752828366617,0.20248,118600.0,118590.0,0.20574465]
[1752828366899,0.34832,118600.0,118590.0,0.84388828]
[1752828367115,0.14584,118600.0,118590.0,0.84388828]
[1752828367332,0.40721,118630.0,118620.0,0.19389561]
[1752828367542,0.40721,118630.0,118620.0,0.27940589]
[1752828367543,0.40927,118630.0,118620.0,0.27940589]
[1752828367752,0.55507,118630.0,118620.0,0.32589331]
[1752828368623,0.55507,118630.0,118620.0,0.32637712]
[1752828368845,0.06721,118630.0,118620.0,0.32637712]
[1752828369065,0.14588,118630.0,118620.0,0.32637712]
[1752828369308,0.03421,118640.0,118630.0,0.19387925]
[1752828369541,0.18005,118640.0,118630.0,0.33031377]
[1752828370426,0.18847829,118640.0,118630.0,0.33031377]
[1752828370633,0.41530142,118640.0,118630.0,0.27938981]
[1752828370846,0.24772414,118640.0,118630.0,0.29624802]
[1752828371062,0.22243829,118640.0,118630.0,0.29624802]
[1752828371726,0.23929529,118640.0,118630.0,0.29624802]
[1752828371937,0.23086665,118640.0,118630.0,0.29624802]
[1752828372156,0.41630141,118640.0,118630.0,0.08551028]
[1752828372375,0.41630141,118640.0,118620.0,0.17751972]
[1752828372376,0.24724976,118630.0,118620.0,0.17751972]
[1752828372564,0.25773925,118630.0,118620.0,0.19437963]
[1752828372814,0.59868925,118630.0,118620.0,0.00048381]
[1752828373042,1.17040389,118630.0,118620.0,0.00048381]
[1752828373266,1.09540389,118630.0,118620.0,0.00048381]
[1752828373517,1.09540389,118630.0,118620.0,0.00148381]
[1752828373518,1.09740389,118630.0,118620.0,0.00148381]
[1752828373738,1.25591417,118630.0,118620.0,0.00048381]
[1752828374428,1.25691417,118630.0,118620.0,0.00148381]
[1752828374645,1.25591417,118630.0,118620.0,0.00048381]
[1752828375085,1.25591417,118630.0,118580.0,0.25263967]
[1752828375086,0.08639659,118590.0,118580.0,0.26107257]
[1752828375308,0.40100487,118590.0,118580.0,0.34706741]
[1752828375764,0.23536587,118590.0,118580.0,0.40791776]
[1752828375983,0.22693375,118590.0,118580.0,0.40791776]
[1752828376209,0.22693382,118590.0,118580.0,0.35550003]
[1752828376450,0.24379786,118590.0,118580.0,0.35550003]
[1752828376656,0.24379786,118590.0,118580.0,0.35850003]
[1752828376893,0.23536559,118590.0,118580.0,0.35850003]
[1752828377574,0.24379779,118590.0,118580.0,0.35850003]
[1752828377790,0.23536559,118590.0,118580.0,0.35850003]
[1752828378263,0.21007,118590.0,118580.0,0.35850003]
[1752828378476,0.21007,118590.0,118580.0,0.41462285]
[1752828379144,0.37321,118610.0,118600.0,0.19391483]
[1752828379357,0.08321,118620.0,118610.0,0.19391195]
[1752828379573,0.27644977,118620.0,118610.0,0.19391195]
[1752828379789,0.2764497,118620.0,118610.0,0.19391195]
[1752828379997,0.28487976,118620.0,118610.0,0.19391195]
[1752828380217,0.2764497,118620.0,118610.0,0.19391195]
[1752828380438,0.60801978,118620.0,118610.0,0.19391195]
[1752828380873,0.60259,118620.0,118610.0,0.19491195]
[1752828381325,0.26259,118620.0,118610.0,0.19491195]
[1752828381759,0.27101964,118620.0,118610.0,0.19491195]
[1752828381965,0.28787941,118620.0,118610.0,0.19491195]
[1752828382234,0.29630954,118620.0,118610.0,0.19491195]
[1752828382457,0.29630954,118620.0,118610.0,0.24821363]
[1752828382671,0.46491517,118620.0,118610.0,0.18648146]
[1752828382882,0.45648553,118620.0,118610.0,0.19491231]
[1752828383096,0.45648553,118620.0,118610.0,0.20334294]
[1752828383322,0.46491581,118620.0,118610.0,0.20334294]
[1752828383541,0.11691,118620.0,118610.0,0.25664458]
[1752828383770,0.27928949,118620.0,118610.0,0.26507507]
[1752828383995,0.28771941,118620.0,118610.0,0.21177343]
[1752828384214,0.3045796,118620.0,118610.0,0.21177343]
[1752828384431,1.31803953,118620.0,118610.0,0.001]
[1752828384686,1.36803953,118620.0,118610.0,0.001]
[1752828385119,0.91289582,118620.0,118610.0,0.001]
[1752828385341,1.36803953,118620.0,118610.0,0.001]
[1752828385555,0.91289582,118620.0,118610.0,0.00310774]
[1752828385766,0.90446576,118620.0,118610.0,0.00310774]
[1752828385989,0.90446576,118620.0,118610.0,0.18015857]
[1752828386207,0.90446576,118620.0,118610.0,0.001]
[1752828387312,0.82946576,118620.0,118610.0,0.18858934]
[1752828387529,0.90446576,118620.0,118610.0,0.001]
[1752828387753,0.4393226,118610.0,118600.0,0.26818273]
[1752828387968,0.44136203,118610.0,118600.0,0.31114907]
[1752828388180,0.44451203,118610.0,118600.0,0.31114907]
[1752828388400,0.41922042,118610.0,118600.0,0.31114907]
[1752828389101,0.44551267,118610.0,118600.0,0.31214907]
[1752828389315,0.61379698,118610.0,118600.0,0.24388892]
[1752828389523,0.60536656,118610.0,118600.0,0.06911128]
[1752828389737,0.60536656,118610.0,118600.0,0.002]
[1752828389738,1.11864894,118610.0,118600.0,0.002]
[1752828390397,1.16864894,118610.0,118600.0,0.002]
[1752828391270,0.71350523,118610.0,118600.0,0.002]
[1752828391493,1.16864894,118610.0,118600.0,0.002]
[1752828391931,0.71350523,118610.0,118600.0,0.002]
[1752828392138,1.16864894,118610.0,118600.0,0.002]
[1752828393273,1.09364894,118610.0,118600.0,0.002]
[1752828393482,1.16864894,118610.0,118600.0,0.002]
[1752828395762,1.31336894,118610.0,118600.0,0.002]
[1752828396985,1.23836894,118610.0,118600.0,0.002]
[1752828397209,1.31336894,118610.0,118600.0,0.002]
[1752828398952,1.31336894,118610.0,118600.0,0.18749724]
[1752828399198,1.31336894,118610.0,118600.0,0.002]
[1752828399651,1.26336894,118610.0,118600.0,0.1959288]
[1752828399876,1.16161022,118610.0,118600.0,0.20436]
[1752828400109,0.57259566,118610.0,118600.0,0.20436]
[1752828400336,0.65602651,118610.0,118600.0,0.20436]
[1752828400560,0.83307734,118610.0,118600.0,0.20436014]
[1752828400782,0.75807734,118610.0,118600.0,0.1959288]
[1752828401003,0.82464685,118610.0,118600.0,0.1959288]
[1752828401248,0.81621615,118610.0,118600.0,0.18749739]
[1752828401478,0.81621615,118610.0,118600.0,0.19592887]
[1752828401691,1.27135986,118610.0,118600.0,0.19592887]
[1752828401904,1.27135986,118610.0,118600.0,0.20436021]
[1752828402339,1.11117,118610.0,118600.0,0.21279141]
[1752828402565,1.10273923,118610.0,118600.0,0.21279141]
[1752828402793,1.0943086,118610.0,118600.0,0.21279141]
[1752828403029,0.66445707,118610.0,118600.0,0.21279141]
[1752828403253,0.64759552,118610.0,118600.0,0.21279141]
[1752828403489,0.34066447,118610.0,118600.0,0.21279141]
[1752828403729,0.48474447,118610.0,118600.0,0.27990269]
[1752828403935,0.50160552,118610.0,118600.0,0.27990269]
[1752828404243,0.52161693,118610.0,118600.0,0.27990269]
[1752828404471,0.5647877,118610.0,118600.0,0.27990269]
[1752828404670,0.5971877,118610.0,118600.0,0.21279141]
[1752828405358,0.5971882,118610.0,118600.0,0.20436021]
[1752828405594,0.75737748,118610.0,118600.0,0.20436028]
[1752828405807,0.75737748,118610.0,118600.0,0.21279162]
[1752828406020,0.75737748,118610.0,118600.0,0.21279119]
[1752828406237,0.76580847,118610.0,118600.0,0.21279119]
[1752828406456,0.588758,118610.0,118600.0,0.20435978]
[1752828406667,0.5718958,118610.0,118600.0,0.20435978]
[1752828407087,0.57189538,118610.0,118600.0,0.20435978]
[1752828407298,0.58032608,118610.0,118600.0,0.20435978]
[1752828409056,0.58875693,118610.0,118600.0,0.20435978]
[1752828410429,0.58032608,118610.0,118600.0,0.20435978]